Cogmind - Beta 15 @@@ ROGUE MODE // 2025.06.03 @ 00:45:03 Player: Cray_ Result: Destroyed by H-66 Slayer with Heavy Assault Rifle Performance ------------- Evolutions (4) 2000 Regions Visited (8) 1600 Robots Destroyed (92) 460 Value Destroyed (2547) 2547 Prototype IDs (21) 420 Alien Tech Used (0) 0 Bonus (911) 911 TOTAL SCORE: 7938 Bonus ------- Follower Combat Kills 111 Registered with UFD 300 Met Optimus in HQ 500 Cogmind --------- Core Integrity 0/850 Matter 203/300 Energy 100/100 System Corruption 7% Temperature Cool (0) Movement Core (50) Location -6/Extension Parts ------- > --- POWER (1) -------- (None) > --- PROPULSION (6) --- (None) > --- UTILITY (5) ------ Improved Signal Interpreter > --- WEAPON (3) ------- (None) > --- INVENTORY (5) ---- Experimental Sensor Array Medium Reflective Plating Plasma Cutter CPS Tube (2) Great Maul Peak State ------------ > --- POWER ------------ Light Angular Momentum Engine > --- PROPULSION ------- Carbon-fiber Leg Carbon-fiber Leg Carbon-fiber Leg Flexi-carbon Leg Flexi-carbon Leg Myomer Leg > --- UTILITY ---------- Advanced Heat Sink Improved Matter Compressor Improved Signal Interpreter Hacking Suite Authchip [Propulsion] > --- WEAPON ----------- Heavy Laser Heavy Laser Plasma Cutter > --- INVENTORY -------- Experimental Sensor Array Authchip [Propulsion] CPS Tube Great Maul DRS Beacon [Rating: 65] Favorites ----------- Power Heavy Ion Engine Engine Heavy Ion Engine Power Core Micro Nuclear Core Propulsion Light Treads Treads Light Treads Leg Carbon-fiber Leg Wheel Armored Wheel Flight Unit Improved Flight Unit Utility Large Storage Unit Device Seismic Detector Storage Large Storage Unit Processor Improved Signal Interpreter Hackware Hacking Suite Protection Hardened Light Armor Plating Weapon Autogun Energy Gun Heavy Laser Energy Cannon Phase Cannon Ballistic Gun Autogun Ballistic Cannon Magnetic Acceleration Cannon Launcher Grenade Launcher Special Weapon Plasma Cutter Impact Weapon Great Maul Special Melee Weapon Datajack Build | -11 -10 -10 -9 -9 -9 -9 -6 -6 ------- Run | Yrd Mat Min Mat Sto Rec Scr Fac Ext Slots Evolved 8 | . . . 2 . . . 6 . Power . | . . . . . . . . . Propulsion 4 | . . . 1 . . . 3 . Utility 3 | . . . . . . . 3 . Weapon 1 | . . . 1 . . . . . Parts Attached 110 | 7 18 3 18 8 4 6 15 31 Power 10 | 1 2 . 3 . . . 1 3 Engine 9 | 1 2 . 3 . . . . 3 Core 1 | . . . . . . . 1 . Reactor . | . . . . . . . . . Propulsion 38 | 2 4 . 5 6 2 2 4 13 Treads 14 | . 2 . 4 4 1 . . 3 Leg 12 | 2 1 . . . . . . 9 Wheel 5 | . 1 . 1 1 1 . . 1 Hover . | . . . . . . . . . Flight 7 | . . . . 1 . 2 4 . Utility 26 | 2 3 1 3 . . 2 7 8 Device 7 | 1 1 . . . . 1 1 3 Storage 5 | 1 2 . . . . . 1 1 Processor 6 | . . . 1 . . . 3 2 Hackware 3 | . . . . . . 1 2 . Protection 5 | . . 1 2 . . . . 2 Artifact . | . . . . . . . . . Weapon 36 | 2 9 2 7 2 2 2 3 7 Energy Gun 12 | 2 6 . 1 1 . . . 2 Energy Cannon 2 | . . . . . . . 1 1 Ballistic Gun 11 | . 1 1 5 . 2 2 . . Ballistic Cannon 2 | . . . . . . . . 2 Launcher 2 | . . 1 1 . . . . . Special Weapon 3 | . 1 . . 1 . . . 1 Impact Weapon 3 | . . . . . . . 2 1 Slashing Weapon . | . . . . . . . . . Piercing Weapon . | . . . . . . . . . Special Melee Weapon 1 | . 1 . . . . . . . Unidentified Prototypes 8 | . 1 . 4 1 . . . 2 Corrupted Parts 1 | . . . . . . 1 . . System Corruption 3 | . . . . . . 3 . . Parts Lost 33 | . 1 . . . . . 5 27 Power 3 | . . . . . . . . 3 Propulsion 18 | . 1 . . . . . 3 14 Utility 7 | . . . . . . . 2 5 Weapon 5 | . . . . . . . . 5 Highest Loss Streak 24 | . 1 . . . . . 3 24 To Critical Strikes . | . . . . . . . . . Average Backups 11 | 4 10 15 14 14 14 11 8 8 Power . | . . . . . . . . . Propulsion 2 | 1 . . . 3 4 3 . . Utility 4 | . 3 5 5 3 3 5 4 4 Weapon 3 | 1 4 8 7 7 5 1 1 1 Tool/Special . | . . . . . . . . . Unused Backups 26 | . 5 1 7 3 1 2 3 4 Power . | . . . . . . . . . Propulsion . | . . . . . . . . . Utility 15 | . 3 1 4 2 . 1 2 2 Weapon 10 | . 2 . 3 1 1 1 1 1 Tool/Special 1 | . . . . . . . . 1 Average Slot Usage (%) 90 | . 98 100 98 99 98 84 81 84 Engine 9 | . 14 14 11 11 11 10 4 3 Treads 13 | . 12 14 20 21 22 15 . . Leg 5 | . 10 . . . . . . 25 Wheel 7 | . 4 14 11 10 11 11 . . Flight 4 | . . . . . . 6 34 4 Device 5 | . 14 14 7 3 . 3 4 5 Storage 10 | . 14 14 11 11 11 10 6 6 Processor 1 | . . . . . . . 4 6 Hackware 2 | . . . . . . . 13 12 Protection 4 | . . . 3 7 11 5 . . Energy Gun 5 | . 26 . . . . . . 8 Ballistic Gun 16 | . . 18 32 30 27 21 4 . Impact Weapon 1 | . . . . . . . 2 6 Peak Build Rating 65 | 7 13 11 22 23 23 32 48 65 Average Rating 23 | 3 10 9 15 22 21 19 40 50 On Entrance 16 | . 7 11 9 21 23 18 28 33 Naked Turns . | . . . . . . . . . Heaviest Build 42 | 11 32 31 42 42 42 42 29 35 Greatest Support 110 | 20 40 10 40 40 40 14 29 110 Greatest Overweight (x) 7 | 1 3 3 4 7 3 5 1 3 Average Overweight (x) 1 | . 1 2 2 2 2 2 . . Largest Inventory Capacity 15 | 8 15 15 15 15 15 15 15 10 Average Capacity 13 | 7 10 15 15 15 15 14 10 9 Most Carried 15 | 6 15 15 15 15 15 15 14 10 Average Carried 12 | 4 10 14 14 14 14 12 9 9 Final Capacity 15 | 8 15 15 15 15 15 15 10 5 Final Carried 15 | 6 15 15 15 15 15 15 10 5 Class Distribution -------------------- 34% | Tank 33% | Mutant 10% | Scavenger-Mutant 9% | Scavenger-Gunner 5% | Skirmisher 3% | Sprinter Dominant Class ---------------- Mutant | -10/Materials Mutant | -10/Mines Scavenger-Gunner | -9/Materials Tank | -9/Storage Tank | -9/Recycling Tank | -9/Scraptown Sprinter | -6/Factory Scavenger-Mutant | -6/Extension Resources | -11 -10 -10 -9 -9 -9 -9 -6 -6 ----------- Run | Yrd Mat Min Mat Sto Rec Scr Fac Ext Matter Collected 2878 | 162 418 52 809 467 214 100 302 354 Remotely . | . . . . . . . . . Salvage Created 3528 | 14 849 75 1056 661 224 . 190 459 Parts 217 | 5 55 12 60 37 15 . 7 26 Haulers Intercepted 8 | . 2 . 5 1 . . . . Recyclers Shooed 2 | . . . 2 . . . . . Parts Field Recycled . | . . . . . . . . . Retrieved Matter . | . . . . . . . . . Parts Self-Destructed . | . . . . . . . . . Prevented . | . . . . . . . . . Kills | -11 -10 -10 -9 -9 -9 -9 -6 -6 ------- Run | Yrd Mat Min Mat Sto Rec Scr Fac Ext Combat Hostiles Destroyed 60 | . 18 4 15 13 3 . 1 6 Melee 1 | . . . . . . . 1 . Guns 51 | . 17 . 15 13 3 . . 3 Cannons 2 | . . . . . . . . 2 AOE 4 | . . 4 . . . . . . Classes Destroyed 13 | 1 6 . 4 . . . 1 1 Worker 3 | . . . 2 . . . 1 . Builder 11 | . 4 1 . . . . 2 4 Tunneler 1 | 1 . . . . . . . . Hauler 8 | . 2 . 5 1 . . . . Recycler 5 | . . . 3 . 1 . 1 . Operator 1 | . . . 1 . . . . . Watcher 3 | . 1 . 1 . . . . 1 Swarmer 11 | . 6 2 3 . . . . . Grunt 26 | . 9 2 8 7 . . . . Sentry 18 | . . . 4 6 3 . . 5 Programmer 1 | . . . . . . . 1 . Behemoth 1 | . . . . . . . . 1 Subdweller 3 | . 3 . . . . . . . Best Kill Streak 7 | 1 7 5 5 2 3 . 4 3 Combat Bots Only 5 | . 5 4 5 2 2 . 1 2 Max Kills in Single Turn 4 | 1 2 4 2 1 1 . 1 1 Gunslinging 1 | . . . 1 . . . . . Exploded 4 | . . 4 . . . . . . Melee 1 | . . . . . . . 1 . Uniques/NPCs Destroyed . | . . . . . . . . . Combat | -11 -10 -10 -9 -9 -9 -9 -6 -6 -------- Run | Yrd Mat Min Mat Sto Rec Scr Fac Ext Hostile Shots Fired 640 | . 69 5 39 55 8 . 52 412 Missed 231 | . 13 1 13 11 3 . 30 160 Hits 409 | . 56 4 26 44 5 . 22 252 Projectile 409 | . 56 4 26 44 5 . 22 252 Critical Strikes 6 | . 1 . 2 1 . . 1 1 Damage Taken 5593 | . 695 36 320 590 74 . 433 3445 Core 1091 | . 168 13 14 36 . . 68 792 Absorbed by Shields . | . . . . . . . . . Ignored by Resistances 36 | . . . . . . . . 36 Regen/Repaired (Parts) 37 | . . . . . . . 37 . Core Remaining (%) 71 | 100 . 27 . . . 87 . . Volleys Fired 246 | 2 73 7 58 37 6 . 23 40 Largest 3 | 2 2 1 3 3 3 . 1 3 Hottest 138 | 80 112 30 69 69 69 . 85 138 Shots Fired 523 | 4 143 7 156 107 18 . 21 67 Gun 479 | 4 142 5 156 105 18 . 1 48 Cannon 36 | . . . . . . . 19 17 Launcher 2 | . . 2 . . . . . . Special 6 | . 1 . . 2 . . 1 2 Kinetic 297 | . . 5 156 105 18 . 1 12 Thermal 216 | 4 137 . . 2 . . 20 53 Explosive 2 | . . 2 . . . . . . Electromagnetic 6 | . 6 . . . . . . . Robot Hit Streak 36 | 1 15 7 19 36 8 . 9 14 Robot Miss Streak 5 | 1 2 . 2 1 1 . 1 5 Penetration Max . | . . . . . . . . . Secondary Targets 8 | . 3 . 3 . . . . 2 Max Gunslinging Chain 1 | . 1 . 1 . . . . 1 Shots Hit Robots 367 | 2 93 5 107 81 13 . 6 60 Core Hits 131 | 1 37 7 40 23 6 . 1 16 Critical Kills 2 | . . . 1 . . . 1 . Critical Parts Destroyed 6 | . . . . 1 . . 2 3 Critical Strikes 15 | . 4 . 1 1 . . 3 6 Burn 5 | . 4 . . . . . . 1 Destroy 2 | . . . 1 1 . . . . Blast 1 | . . . . . . . . 1 Smash 7 | . . . . . . . 3 4 Melee Attacks 34 | . . . . . . . 12 22 Impact 34 | . . . . . . . 12 22 Slashing . | . . . . . . . . . Piercing . | . . . . . . . . . Sneak Attacks 7 | . . . . . . . 4 3 Combat Hostiles . | . . . . . . . . . Follow-up Attacks . | . . . . . . . . . Damage Inflicted 6504 | 21 1263 292 1480 1248 215 . 383 1602 Guns 5140 | 21 1263 65 1472 1244 215 . . 860 Cannons 367 | . . . . . . . 32 335 Explosions 227 | . . 227 . . . . . . Melee 758 | . . . . . . . 351 407 Ramming 12 | . . . 8 4 . . . . Kinetic 3203 | . . 65 1472 1244 215 . . 207 Thermal 2199 | 21 1158 . . . . . 32 988 Explosive 227 | . . 227 . . . . . . Electromagnetic 105 | . 105 . . . . . . . Impact 758 | . . . . . . . 351 407 Slashing . | . . . . . . . . . Piercing . | . . . . . . . . . Highest Corruption 17 | . . . 2 2 2 3 17 17 Average Corruption 5 | . . . 2 2 2 3 11 8 Corruption Purged 10 | . . . . . . . . 10 Corruption Blocked . | . . . . . . . . . Effects 103 | . . . 10 11 13 . 18 51 Message Errors 41 | . . . 6 5 4 . 9 17 Matter Fused 20 | . . . 2 2 2 . 1 13 Heat Flow Errors 11 | . . . 1 2 . . 3 5 Energy Discharges 10 | . . . . . 3 . 1 6 Parts Rejected 3 | . . . 1 1 . . . 1 Data Loss (minor) 8 | . . . . 1 2 . 1 4 Data Loss (major) 3 | . . . . . 1 . 1 1 Misfires 1 | . . . . . . . . 1 Alerts 3 | . . . . . 1 . . 2 Misdirections 2 | . . . . . . . 1 1 Weapon Failures 1 | . . . . . . . 1 . Overload Shots . | . . . . . . . . . Overflow Damage 444 | . . . . . . . 221 223 Projectiles 10 | . . . . . . . . 10 Explosions . | . . . . . . . . . Melee 434 | . . . . . . . 221 213 Knockbacks 2 | . . . . . . . 1 1 Impact 2 | . . . . . . . 1 1 Kinetic . | . . . . . . . . . Secondary . | . . . . . . . . . Self-Inflicted Damage 4 | . . . 4 . . . . . Shots . | . . . . . . . . . Rammed 2 | . . . 1 1 . . . . Targets Rammed 3 | . . . 1 1 1 . . . Kicked . | . . . . . . . . . Crushed 1 | . . . . . 1 . . . Highest Temperature 305 | 36 305 4 251 193 99 . 161 209 Average Temperature 60 | 20 81 4 29 54 41 . 44 86 Received Heat Transfer 1407 | . 177 9 162 282 27 . 72 678 Effects 3 | . 3 . . . . . . . Energy Bleed 1 | . 1 . . . . . . . Interference 2 | . 2 . . . . . . . Siege Activations . | . . . . . . . . . Martial Activations . | . . . . . . . . . Shielding Activations . | . . . . . . . . . Robots Disrupted . | . . . . . . . . . Combat Hostiles . | . . . . . . . . . Robots Corrupted 5 | . 1 . . . . . 2 2 Combat Hostiles 2 | . 1 . . . . . . 1 Parts Fried 8 | . 1 . . . . . 6 1 Impact Corruptions 18 | . . . . . . . 8 10 Robots Melted 1 | . 1 . . . . . . . Combat Hostiles . | . . . . . . . . . Parts Melted 8 | . 6 . . . . . . 2 Heat Transferred 5049 | 50 3097 . . . . . 37 1865 Parts Sabotaged . | . . . . . . . . . Parts Stolen . | . . . . . . . . . Parts Stripped . | . . . . . . . . . Power Chain Reactions . | . . . . . . . . . Alert | -11 -10 -10 -9 -9 -9 -9 -6 -6 ------- Run | Yrd Mat Min Mat Sto Rec Scr Fac Ext Maximum Alert Level 1 | . . . . . . . 1 . Low Security (%) 99 | 100 100 100 100 100 100 . 93 100 Level 1 . | . . . . . . . 6 . Level 2 . | . . . . . . . . . Level 3 . | . . . . . . . . . Level 4 . | . . . . . . . . . Level 5 . | . . . . . . . . . High Security . | . . . . . . . . . Max Security . | . . . . . . . . . Peak Influence 224 | 5 174 119 125 174 142 . 224 105 Initial 105 | . . . 38 49 64 . . 105 Average 55 | . 65 47 62 78 57 . 85 21 Influence Increases 2703 | 5 486 129 477 418 374 . 455 359 Destroy 0b10 Robot/C 1200 | . 300 80 300 260 60 . 20 180 Destroy 0b10 Robot/NC 170 | 5 35 5 60 5 5 . 20 35 Destroy Leader 294 | . 66 20 82 92 . . 10 24 Allied During Kill 34 | . . . . . . . . 34 Successful Hack 83 | . 39 . 1 13 9 . 9 12 Select Force Hacks 330 | . 30 . . . 300 . . . Disable Machine 135 | . 15 . . 30 . . 60 30 Anti-Garrison Action 150 | . . . . . . . 150 . Destroy Structure 52 | . 1 9 4 3 . . 21 14 Partial Spotted 30 | . . . . . . . . 30 Lose Combat Pursuer 225 | . . 15 30 15 . . 165 . Influence Decreases 2703 | 5 486 30 459 370 523 16 238 576 Entered New Map 358 | . . . 61 68 101 16 . 112 Time Decay 2154 | 5 476 30 398 302 422 . 188 333 Lost Part 128 | . 10 . . . . . 50 68 Lost Ally 63 | . . . . . . . . 63 Squads Dispatched 17 | . 3 . . 3 . . 9 2 Investigation 10 | . 3 . . 1 . . 5 1 Extermination 1 | . . . . . . . 1 . Reinforcement 3 | . . . . 1 . . 1 1 Assault 2 | . . . . . . . 2 . Garrison 1 | . . . . 1 . . . . Intercept . | . . . . . . . . . Searches Triggered . | . . . . . . . . . Construction Impeded 1 | . . . . . . . . 1 Haulers Reinforced . | . . . . . . . . . Active Scanning Responses . | . . . . . . . . . Cargo Convoy Interrupts . | . . . . . . . . . Stealth | -11 -10 -10 -9 -9 -9 -9 -6 -6 --------- Run | Yrd Mat Min Mat Sto Rec Scr Fac Ext Distress Signals 8 | . . . 3 3 . . . 2 Communications Jammed . | . . . . . . . . . Distress Signals . | . . . . . . . . . Times Spotted 125 | . 33 7 28 23 2 . 17 15 Peak Tracking Total 6 | . 4 5 6 4 2 . 6 4 Tactical Retreats 10 | . 1 1 2 1 . . 5 . Traps | -11 -10 -10 -9 -9 -9 -9 -6 -6 ------- Run | Yrd Mat Min Mat Sto Rec Scr Fac Ext Traps Triggered 8 | . 3 . 1 . . . 2 2 Indirectly . | . . . . . . . . . Trap Hack Attempts 6 | . 6 . . . . . . . Triggered . | . . . . . . . . . Disarmed . | . . . . . . . . . Reprogrammed 2 | . 2 . . . . . . . Reused . | . . . . . . . . . Traps Extracted . | . . . . . . . . . Installed . | . . . . . . . . . Triggered . | . . . . . . . . . Machines | -11 -10 -10 -9 -9 -9 -9 -6 -6 ---------- Run | Yrd Mat Min Mat Sto Rec Scr Fac Ext Machines Disabled 12 | . 2 . . 2 . . 5 3 Max in Single Turn 1 | . 1 . . 1 . . 1 1 Garrison Access 2 | . . . . . . . 2 . Machines Repaired . | . . . . . . . . . Machines Dismantled 8 | . . . . 2 . . 3 3 Machines Sabotaged . | . . . . . . . . . Overloaded Fab Kills . | . . . . . . . . . Hacking | -11 -10 -10 -9 -9 -9 -9 -6 -6 --------- Run | Yrd Mat Min Mat Sto Rec Scr Fac Ext Machines Accessed 55 | . 10 . 5 5 16 5 11 3 Terminals 29 | . 8 . 2 4 6 . 6 3 Fabricators 1 | . . . . . . . 1 . Repair Stations 1 | . . . . . . . 1 . Recycling Units 15 | . 2 . 1 1 10 . 1 . Scanalyzers 2 | . . . 2 . . . . . Garrison Access 2 | . . . . . . . 2 . Total Hacks 165 | . 27 . 14 15 43 38 21 7 Successful 113 | . 15 . 11 9 29 38 9 2 Failed 52 | . 12 . 3 6 14 . 12 5 Catastrophic 7 | . 1 . 1 1 1 . 2 1 Database Lockouts . | . . . . . . . . . Manual 83 | . 20 . 5 15 27 . 16 . Terminals 78 | . 23 . 3 14 17 . 14 7 Fabricators 3 | . . . . . . . 3 . Repair Stations 1 | . . . . . . . 1 . Recycling Units 35 | . 4 . 3 1 26 . 1 . Scanalyzers 8 | . . . 8 . . . . . Garrison Access 2 | . . . . . . . 2 . Terminal Hacks 57 | . 7 . . 5 4 38 1 2 Record 39 | . 2 . . . . 37 . . Part Schematic 1 | . . . . . 1 . . . Robot Analysis 10 | . 4 . . 5 1 . . . Prototype ID Bank 1 | . . . . . 1 . . . Open Door 3 | . . . . . . . 1 2 Branch Access Points 1 | . 1 . . . . . . . Alert Level 1 | . . . . . 1 . . . Proto ID Catalog 1 | . . . . . . 1 . . Fabricator Hacks 1 | . . . . . . . 1 . Load Schematic 1 | . . . . . . . 1 . Repair Station Hacks . | . . . . . . . . . Recycling Unit Hacks 13 | . 1 . 1 1 10 . . . Report Inventory 11 | . 1 . . 1 9 . . . Retrieve Components 2 | . . . 1 . 1 . . . Scanalyzer 6 | . . . 6 . . . . . Insert Component 3 | . . . 3 . . . . . Analyze 3 | . . . 3 . . . . . Garrison Access Hacks 1 | . . . . . . . 1 . Seal Access 1 | . . . . . . . 1 . Unauthorized Hacks 33 | . 7 . 2 3 15 . 6 . Terminals 18 | . 5 . 2 3 5 . 3 . Assimilate 1 | . . . . . . . 1 . Botnet 17 | . 5 . 2 3 5 . 2 . Fabricators 1 | . . . . . . . 1 . Recompile 1 | . . . . . . . 1 . Repair Stations 1 | . . . . . . . 1 . Patch 1 | . . . . . . . 1 . Recycling Units 13 | . 2 . . . 10 . 1 . Mask 1 | . 1 . . . . . . . Tunnel 11 | . 1 . . . 10 . . . Fedlink 1 | . . . . . . . 1 . Scanalyzers . | . . . . . . . . . Garrison Access . | . . . . . . . . . Data Cores Recovered 1 | . . . 1 . . . . . Used . | . . . . . . . . . Hacking Detections 30 | . 7 . 2 4 9 . 6 2 Full Trace Events 9 | . 3 . . 1 2 . 2 1 Feedback Events . | . . . . . . . . . Feedback Blocked . | . . . . . . . . . Robot Schematics Acquired . | . . . . . . . . . Robots Built . | . . . . . . . . . Authchips . | . . . . . . . . . Time . | . . . . . . . . . Total Robot Build Rating . | . . . . . . . . . Part Schematics Acquired 4 | . . . 3 . 1 . . . Parts Built . | . . . . . . . . . Authchips . | . . . . . . . . . Time . | . . . . . . . . . Total Part Build Rating . | . . . . . . . . . Parts Repaired . | . . . . . . . . . Time . | . . . . . . . . . Parts Recycled . | . . . . . . . . . Recycled Matter . | . . . . . . . . . Retrieved Matter . | . . . . . . . . . Retrieved Components 11 | . . . 9 . 2 . . . Parts Scanalyzed 3 | . . . 3 . . . . . Part Schematics Acquired 3 | . . . 3 . . . . . Parts Damaged . | . . . . . . . . . Bothacking | -11 -10 -10 -9 -9 -9 -9 -6 -6 ------------ Run | Yrd Mat Min Mat Sto Rec Scr Fac Ext Used RIF Installer . | . . . . . . . . . Robots Hacked . | . . . . . . . . . Non-combat . | . . . . . . . . . Combat . | . . . . . . . . . Robot Hacks Applied . | . . . . . . . . . Relay Couplers Released 3 | . . . . . . . 3 . Machine Destruction 3 | . . . . . . . 3 . Fabnet Peak Effective % . | . . . . . . . . . Robots Rewired 4 | . . . . . . . . 4 Allies Hacked . | . . . . . . . . . Hacks Repelled . | . . . . . . . . . Allies | -11 -10 -10 -9 -9 -9 -9 -6 -6 -------- Run | Yrd Mat Min Mat Sto Rec Scr Fac Ext Total Allies 9 | . . . . . . . . 9 Largest Group 7 | . . . . . . . . 7 Highest-Rated Group 186 | . . . . . . . . 186 Highest-Rated Ally 39 | . . . . . . . . 39 Total Orders . | . . . . . . . . . Ally Attacks 64 | . . . . . . . . 64 Total Damage 1138 | . . . . . . . . 1138 Kills 7 | . . . . . . . . 7 Allies Corrupted . | . . . . . . . . . Allies Melted . | . . . . . . . . . Intel | -11 -10 -10 -9 -9 -9 -9 -6 -6 ------- Run | Yrd Mat Min Mat Sto Rec Scr Fac Ext Active Infowar (turns) 3949 | 3 1022 95 808 188 . 1069 413 351 Sensors 1823 | . . . . . . 1069 403 351 Seismic 2116 | 3 1022 95 808 188 . . . . ECM 10 | . . . . . . . 10 . Robot Analysis Total 10 | . 4 . . 5 1 . . . Derelict Logs Recovered 1 | . . 1 . . . . . . Drone Launches . | . . . . . . . . . Drone Recoveries . | . . . . . . . . . Exploration | -11 -10 -10 -9 -9 -9 -9 -6 -6 ------------- Run | Yrd Mat Min Mat Sto Rec Scr Fac Ext Turns Passed 10558 | 70 1529 122 1152 677 1304 3549 556 1599 Spaces Moved 7298 | 44 888 84 532 261 876 2583 1031 999 Core 231 | 9 . . . . . 222 . . Treads 416 | . 197 . 183 25 1 . . 10 Legs 1036 | 35 340 . . . . . . 661 Wheels 4255 | . 351 84 349 235 875 2359 . 2 Hover . | . . . . . . . . . Flight 1360 | . . . . 1 . 2 1031 326 Fastest Speed 24 | 50 110 110 125 125 120 50 24 34 Average Speed 112 | 106 130 111 139 148 134 126 27 104 Slowest Speed 555 | 120 240 125 320 555 240 395 104 250 Overloaded Moves . | . . . . . . . . . Propulsion Burnouts . | . . . . . . . . . Robots Hopped 16 | . . . . . . . 15 1 Potential Cave-ins . | . . . . . . . . . Cave-ins Triggered 1 | . . . . . . . 1 . Exploration Rate (%) 53 | 3 97 19 48 45 99 93 25 54 Regions Visited 8 Branch Regions 5 Pre-discovered Areas 19 | . 1 1 . . 10 7 . . Known Exits Taken 3 | . 1 . 1 . . . 1 . Unknown Exits Taken 5 | 1 . 1 . 1 1 1 . . Scrap Searched 5 | . . . . . . 5 . . Spaces Dug 27 | . . 6 . . . . 21 . Terrain Destroyed 40 | . . 13 . . . . 22 5 Melee 4 | . . . . . . . 4 . Projectile 23 | . . . . . . . 18 5 AOE 13 | . . 13 . . . . . . Terrain Rammed . | . . . . . . . . . Walls Destroyed . | . . . . . . . . . Machines Disabled . | . . . . . . . . . Actions | -11 -10 -10 -9 -9 -9 -9 -6 -6 --------- Run | Yrd Mat Min Mat Sto Rec Scr Fac Ext Total 8969 | 60 1112 105 826 433 957 2863 1213 1400 Wait 902 | . 75 5 164 81 29 222 88 238 Move 7258 | 43 887 83 531 260 875 2582 1000 997 Hop 16 | . . . . . . . 15 1 Pick Up 100 | 8 22 3 17 5 7 19 11 8 Fast Attach 59 | 5 7 . 4 3 . 8 6 26 Attach 30 | 2 4 . 4 . 4 3 9 4 Detach 12 | . . . . 1 . 1 5 5 Swap 90 | . 17 4 22 17 8 1 12 9 Drop 120 | . 21 3 25 12 10 27 14 8 Fire 246 | 2 73 7 58 37 6 . 23 40 Melee 31 | . . . . . . . 12 19 Ram 1 | . . . 1 . . . . . Kick . | . . . . . . . . . Crush 2 | . . . . 1 1 . . . Escape Stasis . | . . . . . . . . . Rewire 25 | . . . . . . . . 25 Trap 6 | . 6 . . . . . . . Miscellaneous 71 | . . . . 16 17 . 18 20 Route ------- -11/Scrapyard -10/Materials (discovered 4 exits: *Mat x3 / *Min) -10/Mines -9/Materials (discovered 3 exits: *Mat / *Sto x2) -9/Storage -9/Recycling (discovered 2 exits: [*Fac] / *Scr) -9/Scraptown (discovered 2 exits: *Fac x2) -6/Factory (discovered 6 exits: *Fac x3 / Low x2 / *Ext) -6/Extension History --------- Turn | Location | Event 8 | -11/Scrapyard | Discovered new exit (range 15) 71 | -11/Scrapyard | Entered Materials 128 | -10/Materials | Identified exit to Mines 216 | -10/Materials | Discovered new exit (range 16) 314 | -10/Materials | Build established: Mutant 771 | -10/Materials | Derelicts attacked the area 1095 | -10/Materials | Core integrity fell below 50% 1373 | -10/Materials | Discovered new exit (range 16) 1518 | -10/Materials | Discovered new exit (range 10) 1600 | -10/Materials | Entered Mines 1604 | -10/Mines | Joined a pair of Derelicts in attacking an 0b10 outpost 1618 | -10/Mines | Learned location of Storage (-9) 1622 | -10/Mines | Met a Derelict bent on vengeance 1706 | -10/Mines | Discovered new exit (range 3) 1722 | -10/Mines | Entered Materials 1722 | -9/Materials | Evolved 2 slots: Propulsion x1, Weapon x1 1965 | -9/Materials | Discovered new exit (range 5) 2560 | -9/Materials | Discovered new exit (range 11) 2568 | -9/Materials | Build established: Scavenger-Gunner 2761 | -9/Materials | Discovered new exit (range 5) 2798 | -9/Materials | Identified exit to Materials 2830 | -9/Materials | Identified exit to Storage 2874 | -9/Materials | Entered Storage 3349 | -9/Storage | Build established: Tank 3477 | -9/Storage | Garrison activated, responded to threat 3546 | -9/Storage | Used back door to open Recycling access 3546 | -9/Storage | Discovered new exit (range 5) 3551 | -9/Storage | Entered Recycling 3970 | -9/Recycling | Discovered new exit (range 15) 4270 | -9/Recycling | Scanned before Scraplab entrance 4791 | -9/Recycling | Entered Scraplab 4801 | -9/Recycling | Discovered new exit (range 3) 4855 | -9/Recycling | Entered Scraptown 4855 | -9/Scraptown | System corruption cleaned by C-Scrubber 5219 | -9/Scraptown | Discovered new exit (range 5) 5347 | -9/Scraptown | Visited SPCMW 5382 | -9/Scraptown | Visited Science Testing Area 5405 | -9/Scraptown | Visited Cyclists 5457 | -9/Scraptown | Visited UFD Registry 5457 | -9/Scraptown | Registered with UFD as "Nanosink" 5485 | -9/Scraptown | Entered Cyclist Reading Room 5490 | -9/Scraptown | Learned location of Zion (-6) 5555 | -9/Scraptown | Visited Junk Repository 5604 | -9/Scraptown | Visited The Evicted 5635 | -9/Scraptown | Visited Symbiants 5648 | -9/Scraptown | Visited CR-KLE's Repair Center 5873 | -9/Scraptown | Visited Modified Component R&D 5927 | -9/Scraptown | Visited Science Guys 5991 | -9/Scraptown | Received an X-ray algorithm 6004 | -9/Scraptown | Visited Infowarlord's Domain 6104 | -9/Scraptown | Discovered new exit (range 5) 6143 | -9/Scraptown | Visited Cartography Club 6637 | -9/Scraptown | Learned location of Mines (-9) 6637 | -9/Scraptown | Learned location of Recycling (-9) 6637 | -9/Scraptown | Learned location of Lower Caves (-7) 6637 | -9/Scraptown | Learned location of Extension (-6) 6637 | -9/Scraptown | Learned 12 Materials zone layouts 6637 | -9/Scraptown | Learned 8 Factory zone layouts 6637 | -9/Scraptown | Learned 12 Factory zone layouts 6637 | -9/Scraptown | Learned 4 Mines zone layouts 6637 | -9/Scraptown | Learned 16 Upper Caves zone layouts 6637 | -9/Scraptown | Learned 20 Upper Caves zone layouts 6637 | -9/Scraptown | Learned location of 2 exits from Research 6637 | -9/Scraptown | Learned location of 1 exit from Upper Caves 6637 | -9/Scraptown | Learned location of 1 exit from Proximity Caves 6753 | -9/Scraptown | Visited Curators Association 6793 | -9/Scraptown | Visited Scrap Suit Storage 6868 | -9/Scraptown | Visited Derelict Rescue Squad 6874 | -9/Scraptown | Found DRS Beacon 6894 | -9/Scraptown | Build established: Mutant 7142 | -9/Scraptown | Visited Research Penetration Think Tank 7226 | -9/Scraptown | Visited Supply Room 7287 | -9/Scraptown | Found Exp. Sensor Array 7376 | -9/Scraptown | Found Scrap Suit 7452 | -9/Scraptown | Found Scrap Suit 8160 | -9/Scraptown | Build established: Skirmisher 8332 | -9/Scraptown | Met Optimus 8332 | -9/Scraptown | Accepted into 0bPrime 8404 | -9/Scraptown | Entered Factory 8404 | -6/Factory | Evolved 6 slots: Propulsion x3, Utility x3 8405 | -6/Factory | Identified exit to Factory 8405 | -6/Factory | Identified exit to Lower Caves 8406 | -6/Factory | Identified exit to Extension 8783 | -6/Factory | Crushed by falling debris 8783 | -6/Factory | System corruption reached 10% 8814 | -6/Factory | Lost 3 parts (2n1u) 8943 | -6/Factory | Found Prototype Processor 8955 | -6/Factory | Loaded intel: 8 recycling unit locations 8960 | -6/Factory | Entered Extension 9103 | -6/Extension | Rescued a captive Derelict 9211 | -6/Extension | Build established: Mutant 9214 | -6/Extension | Rescued a captive Derelict 9373 | -6/Extension | Rescued a captive Derelict 9374 | -6/Extension | Rescued a captive Derelict 9694 | -6/Extension | Build established: Scavenger-Mutant 9829 | -6/Extension | Rescued a captive Derelict 10400 | -6/Extension | Spotted B-75 Beast 10423 | -6/Extension | Spotted B-75 Beast 10431 | -6/Extension | Destroyed B-75 Beast 10437 | -6/Extension | Identified Exp. Targeting Computer 10465 | -6/Extension | Lost 7 allies 10498 | -6/Extension | Core integrity fell below 50% 10519 | -6/Extension | Core integrity fell below 20% 10559 | -6/Extension | Destroyed by H-66 Slayer with Heavy Assault Rifle Last Messages --------------- 10543_ Penetrated by Slug. 10543_ Med. Reflective Plating destroyed. 10544_ Y-54 Guardian destroyed. 10545_ Extracted 17 energy. 10545_ U-05 Engineer builds a Wall. 10546_ Hvy. Plasma Cannon destroyed. 10549_ Slug penetrates Wall. 10549_ Penetrated by Slug. 10549_ Destroyed Welding Torch. 10549_ U-05 Engineer destroyed. 10551_ U-05 Engineer builds a Wall. 10552_ R-10 Processor collects Gatling Laser. 10556_ Med. Storage Unit destroyed. 10556_ Armor Integrity Analyzer destroyed. 10556_ R-10 Processor collects Imp. Heat Sink. 10559_ System corrupted: Matter fused (-8). 10559_ R-10 Processor collects Flak Gun. 10559_ Penetrated by Slug. 10559_ Magnetic Acceleration Cannon destroyed. 10559_ Slug penetrates Wall. Map ----- +----------------------------------------------------+ | ?????????####?????# #??????????????????????? | | ??????????????????# #??????????????????????? | | ??????????????????# #??????????????????????? | | ??????????????????# #??????????????????????? | | ??????????????????# #??????????????????????? | | ??????????????????# #??????????????????????? | | ?????????????????## ##### #??????????????????????? | | ?????????????????#T #???# #??????????????????????? | | ?????????????????## #???# #??????????????????????? | | ??????????????????# #???# #??????????????????????? | | ??????????????????###???# #??????????????????????? | | ????????????????????????# #??????????????????????? | | ????????????????????????# #??????????????????????? | | ????????????????????????# #??????????????????????? | | ????????????????????????# #??#####???????????????? | | ??????????????????????### ### ## ### ????????????? | | ??????????????????????#"" "" % "" ""#?????????? | | ??????????????????????# " "= " #?????????? | | ?###??????????????????# !*%R u #?????????? | | ## #????#########?###?# ! !#?????????? | | ####################### %%= %##????????? | | % % !! * % *w ???????? | | %! % =]=*! ???????? | | %=% !!=%!*%% h ???????? | | !%%% !t%=%%[!! ???????? | | = % %% |*u/*@*!% Rk uR ???????? | | +######################!%=!|! ##????????? | | #????????###?####!&!%! #?????????? | | ### #???????????????# ]%! #?????????? | | #?# #####???????????# #?????????? | | ##### ##!!###?????????# #?????????? | | ""#?????????######T#"""#######?????????? | | """"" """"""#??????????##???##???????????????????? | | #############????????????????????????????????????? | | | | | | | | | | | | | | | | | | | | | | | | | | | | | | | | | +----------------------------------------------------+ Best States ------------- Heat Dissipation 56 Energy Generation 18 Energy Capacity 290 Matter Stores 580 Matter Capacity 600 Sight Range 16 Robot Scan Range 20 Terrain Scan Density 10 ECM Strength 2 Armor Coverage 225 Resistance: TH 15 Evasion (%) 65 Targeting Accuracy 12 Target Analysis 5 Armor Integrity Analysis 30 Recoil Reduction 2 Offensive Hacking 10 Authchip Count 3 Item Schematics ----------------- Hacking Suite | -9/Materials | Scanalyzed Imp. EM Shotgun | -9/Materials | Scanalyzed Plasma Cutter | -9/Materials | Scanalyzed VTOL Module | -9/Recycling | Hacked Robot Schematics ------------------ None Fabricated ------------ Nothing Repaired ---------- Nothing Alien Tech Used ----------------- None Achievements -------------- Quantum Hacking Challenges ------------ None Game ------ Seed DeflectorMicrowarpCleaver Manual? 0 Play Time 03:59:32 Cumulative 67.6 hours Start 2025.06.02 @ 20:31:57 End 2025.06.03 @ 00:45:03 Sessions 3 Manual Loads 0 Difficulty Rogue Special Mode None Game No. 55 Rogue 55 Adventurer 0 Explorer 0 Win Type - Total 1 Types 1/0/0/0/0/0/0/0/0/0 Lore% 44 Gallery% 34 Achievement% 38 Wizard Run 0 Options --------- Layout 1 ASCII 0 Keyboard 0 Movement Mouse Keybinds 0 Fullscreen 2 Font 24/Smallcaps Map View 50x35 Zoom Use 0% Tactical HUD 1 Map Filters NONE Filters NONE Steam 1 RUN: 43907786-651a-4c25-b92f-42165f02efe5